lending/lending_fUSD_20251124
["ID","MTS","AMOUNT","RATE_DAILY","PERIOD"]
[394784876,1763944255330,-1100.0,0.00040559,2]
[394784877,1763944255341,-151.0,0.00040559,120]
[394784878,1763944255351,-634.404637,0.00040559,120]
[394784879,1763944255360,-634.404637,0.00040559,120]
[394784880,1763944255370,-634.404637,0.00040559,120]
[394784881,1763944255381,-151.0,0.00040559,30]
[394784882,1763944255391,-634.404637,0.00040559,120]
[394784883,1763944255401,-151.0,0.00040559,120]
[394784884,1763944255411,-151.0,0.00040559,120]
[394784885,1763944255421,-151.0,0.00040559,120]
[394784886,1763944255431,-1000.0,0.00040569,2]
[394784887,1763944255441,-150.0,0.00040571,7]
[394784888,1763944255451,-369.71272993,0.0004058,2]
[394784889,1763944255461,-1000.0,0.00040598,7]
[394784890,1763944255471,-150.0,0.00040601,120]
[394784891,1763944255483,-7323.47241825,0.00040611,15]
[394784892,1763944255493,-1000.0,0.00040612,7]
[394784893,1763944255503,-5215.41278733,0.00040629,15]
[394784894,1763944255514,-1000.0,0.0004063,7]
[394784895,1763944255523,-1444.0,0.00040658,120]
[394784896,1763944255533,-1100.0,0.00040659,2]
[394784897,1763944255543,-1100.0,0.00040659,3]
[394784898,1763944255554,-1100.0,0.00040659,2]
[394784899,1763944255564,-1000.0,0.00040665,7]
[394784900,1763944255573,-200.0,0.00040672,20]
[394784901,1763944255582,-500.0,0.00040677,8]
[394784902,1763944255592,-1318.01,0.00040678,30]
[394784903,1763944255602,-151.0,0.00040685,120]
[394784904,1763944255611,-151.0,0.00040685,120]
[394784905,1763944255621,-151.0,0.00040685,120]
[394784906,1763944255631,-436.073383,0.00040685,120]
[394784907,1763944255640,-436.073383,0.00040685,120]
[394784908,1763944255649,-436.073383,0.00040685,120]
[394784909,1763944255659,-436.073383,0.00040685,120]
[394784910,1763944255668,-151.0,0.00040685,120]
[394784911,1763944255678,-151.0,0.00040685,120]
[394784912,1763944255687,-232.627023,0.00040685,120]
[394784913,1763944255696,-232.627023,0.00040685,120]
[394784914,1763944255705,-232.627023,0.00040685,120]
[394784915,1763944255715,-232.627023,0.00040685,120]
[394784916,1763944255724,-151.0,0.00040685,15]
[394784917,1763944255734,-151.0,0.00040685,15]
[394784918,1763944255743,-736.385214,0.00040685,120]
[394784919,1763944255753,-151.0,0.00040685,120]
[394784920,1763944255762,-736.385214,0.00040685,120]
[394784921,1763944255771,-151.0,0.00040685,120]
[394784922,1763944255780,-736.385214,0.00040685,120]
[394784923,1763944255790,-736.385214,0.00040685,120]
[394784924,1763944255799,-151.0,0.00040685,120]
[394784925,1763944255809,-151.0,0.00040685,120]
[394784926,1763944255818,-516.012086,0.00040685,120]
[394784927,1763944255828,-180.328555,0.00040685,120]
[394784928,1763944255838,-516.012086,0.00040685,120]
[394784929,1763944255848,-516.012086,0.00040685,120]
[394784930,1763944255858,-516.012086,0.00040685,120]
[394784931,1763944255868,-151.0,0.00040685,120]
[394784932,1763944255880,-873.172326,0.00040685,120]
[394784933,1763944255891,-873.172326,0.00040685,120]
[394784934,1763944255902,-873.172326,0.00040685,120]
[394784935,1763944255913,-873.172326,0.00040685,120]
[394784936,1763944255928,-173.0,0.00040687,2]
[394784937,1763944255940,-150.0,0.00040693,7]
[394784938,1763944255953,-182.8798203,0.000407,7]
[394784939,1763944255963,-500.0,0.00040709,8]
[394784940,1763944255974,-500.0,0.00040709,8]
[394784941,1763944255986,-500.0,0.00040709,8]
[394784942,1763944256002,-500.0,0.00040709,8]
[394784943,1763944256014,-516.03020879,0.00040709,8]
[394784944,1763944256025,-500.0,0.00040709,8]
[394784945,1763944256036,-500.0,0.00040709,8]
[394784946,1763944256048,-500.0,0.0004071,8]
[394784947,1763944256059,-500.0,0.0004071,8]
[394784948,1763944256069,-500.0,0.0004071,8]
[394784949,1763944256079,-500.0,0.0004071,8]
[394784950,1763944256090,-500.0,0.0004071,8]
[394784951,1763944256101,-500.0,0.0004071,8]
[394784952,1763944256111,-576.19,0.0004071,8]
[394784953,1763944256122,-1472.89,0.0004071,8]
[394784954,1763944256133,-500.0,0.0004071,8]
[394784955,1763944256143,-500.0,0.0004071,8]
[394784956,1763944256153,-359.84066885,0.0004071,8]
[394784957,1763944256164,-500.0,0.0004071,8]
[394784958,1763944256174,-377.74629415,0.0004071,8]
[394784959,1763944256184,-500.0,0.0004071,8]
[394784960,1763944256195,-1839.34,0.0004071,8]
[394784961,1763944256207,-500.0,0.0004071,8]
[394784962,1763944256217,-500.0,0.0004071,8]
[394784963,1763944256229,-500.0,0.0004071,8]
[394784964,1763944256243,-500.0,0.0004071,8]
[394784965,1763944256254,-500.0,0.0004071,8]
[394784966,1763944256265,-291.93441405,0.00040715,7]
[394784967,1763944256276,-989.5,0.00040731,7]
[394784968,1763944256288,-1100.0,0.00040759,2]
[394784969,1763944256299,-1100.0,0.00040759,3]
[394784970,1763944256311,-299.0,0.00040773,120]
[394784971,1763944256322,-1000.0,0.00040786,7]
[394784972,1763944256334,-300.0,0.0004079,102]
[394784973,1763944256345,-2000.0,0.00040795,3]
[394784974,1763944256356,-1106.2529,0.00040795,3]
[394784975,1763944256367,-1000.0,0.00040808,7]
[394784976,1763944256378,-1000.0,0.00040808,7]
[394784977,1763944256388,-151.0,0.00040811,120]
[394784978,1763944256400,-229.717414,0.00040811,120]
[394784979,1763944256563,-152.604653,0.00040811,120]
[394784980,1763944256574,-151.0,0.00040811,120]
[394784981,1763944256584,-500.0,0.00040817,8]
[394784982,1763944256593,-500.0,0.00040817,8]
[394784983,1763944256602,-334.84529362,0.00040817,8]
[394784984,1763944256612,-500.0,0.00040817,8]
[394784985,1763944256623,-150.0,0.00040819,7]
[394784986,1763944256632,-150.0,0.00040821,7]
[394784987,1763944256642,-500.0,0.00040821,8]
[394784988,1763944256652,-500.0,0.00040831,8]
[394784989,1763944256663,-150.78151254,0.00040831,8]
[394784990,1763944256672,-500.0,0.00040831,8]
[394784991,1763944256682,-500.0,0.00040831,8]
[394784992,1763944256691,-647.00200634,0.00040831,8]
[394784993,1763944256701,-500.0,0.00040831,8]
[394784994,1763944256710,-500.0,0.00040831,8]
[394784995,1763944256719,-500.0,0.00040831,8]
[394784996,1763944256729,-500.0,0.00040831,8]
[394784997,1763944256739,-157.57031783,0.00040831,8]
[394784998,1763944256748,-500.0,0.00040831,8]
[394784999,1763944256759,-391.48606357,0.00040831,8]
[394785000,1763944256768,-500.0,0.00040831,8]
[394785001,1763944256777,-500.0,0.00040831,8]
[394785002,1763944256787,-500.0,0.00040831,8]
[394785003,1763944256798,-500.0,0.00040831,8]
[394785004,1763944256808,-500.0,0.00040831,8]
[394785005,1763944256818,-150.0,0.00040847,7]
[394785006,1763944256828,-625.0,0.00040856,20]
[394785007,1763944256838,-1100.0,0.00040859,2]
[394785008,1763944256848,-1100.0,0.00040859,3]
[394785009,1763944256858,-1100.0,0.00040859,2]
[394785010,1763944256868,-151.897655,0.00040859,120]
[394785011,1763944256878,-151.0,0.00040859,90]
[394785012,1763944256887,-151.0,0.00040859,90]
[394785013,1763944256897,-151.0,0.00040859,90]
[394785014,1763944256907,-151.0,0.00040859,120]
[394785015,1763944256917,-151.0,0.00040859,120]
[394785016,1763944256926,-1200.0,0.00040859,2]
[394785017,1763944256935,-168.0,0.00040891,2]
[394785018,1763944256944,-514.84070869,0.00040899,31]
[394785019,1763944256953,-500.0,0.00040899,31]
[394785020,1763944256962,-250.0,0.00040899,31]
[394785021,1763944256971,-500.0,0.00040899,31]
[394785022,1763944256981,-1500.0,0.00040899,31]
[394785023,1763944256991,-500.0,0.00040899,31]
[394785024,1763944257000,-151.0,0.000409,120]
[394785025,1763944257009,-151.0,0.000409,120]
[394785026,1763944257018,-151.0,0.000409,120]
[394785027,1763944257027,-151.0,0.000409,120]
[394785028,1763944257037,-256.258397,0.000409,120]
[394785029,1763944257046,-151.0,0.000409,120]
[394785030,1763944257055,-151.0,0.000409,120]
[394785031,1763944257064,-151.0,0.000409,120]
[394785032,1763944257074,-151.0,0.000409,120]
[394785033,1763944257083,-151.0,0.000409,120]
[394785034,1763944257093,-5215.41278733,0.000409,15]
[394785035,1763944257102,-369.71272993,0.000409,2]
[394785036,1763944257111,-163.15622689,0.000409,15]
[394785037,1763944257120,-7323.47241825,0.000409,15]
[394785038,1763944257131,-211.57223611,0.00040902,13]
[394785039,1763944257140,-150.0,0.00040925,7]
[394785040,1763944257150,-1000.0,0.00040939,7]
[394785041,1763944257159,-500.0,0.0004095,120]
[394785042,1763944257168,-500.0,0.00040951,8]
[394785043,1763944257178,-150.0,0.00040952,120]
[394785044,1763944257189,-1318.01,0.00040952,30]
[394785045,1763944257198,-150.0,0.00040955,120]
[394785046,1763944257207,-150.0,0.00040958,2]
[394785047,1763944257217,-200.0,0.00040958,2]
[394785048,1763944257226,-150.0,0.00040958,2]
[394785049,1763944257236,-150.0,0.00040958,2]
[394785050,1763944257246,-150.0,0.00040958,2]
[394785051,1763944257255,-150.0,0.00040958,2]
[394785052,1763944257265,-150.0,0.00040958,2]
[394785053,1763944257274,-150.0,0.00040958,2]
[394785054,1763944257285,-150.0,0.00040958,2]
[394785055,1763944257296,-150.0,0.00040958,2]
[394785056,1763944257305,-150.0,0.00040958,2]
[394785057,1763944257315,-150.0,0.00040958,2]
[394785058,1763944257325,-150.0,0.00040958,2]
[394785059,1763944257334,-150.0,0.00040958,2]
[394785060,1763944257344,-150.0,0.00040958,2]
[394785061,1763944257354,-200.0,0.00040958,2]
[394785062,1763944257363,-500.0,0.00040958,2]
[394785063,1763944257372,-150.0,0.00040958,2]
[394785064,1763944257381,-150.0,0.00040958,2]
[394785065,1763944257391,-150.0,0.00040958,2]
[394785066,1763944257400,-150.0,0.00040958,2]
[394785067,1763944257410,-150.0,0.00040958,2]
[394785068,1763944257420,-1783.0,0.00040958,2]
[394785069,1763944257429,-1100.0,0.00040959,2]
[394785070,1763944257439,-1100.0,0.00040959,3]
[394785071,1763944257448,-1100.0,0.00040959,2]
[394785072,1763944257458,-1100.0,0.00040959,2]
[394785073,1763944257469,-1100.0,0.00040959,2]
[394785074,1763944257481,-1200.0,0.00040959,2]
[394785075,1763944257491,-1000.0,0.0004096,7]
[394785076,1763944257500,-3230.4502675,0.00040965,2]
[394785077,1763944257511,-16315.1736411,0.00040965,2]
[394785078,1763944257521,-300.0,0.00040965,5]
[394785079,1763944257530,-300.0,0.00040965,5]
[394785080,1763944257540,-300.0,0.00040965,5]
[394785081,1763944257549,-300.0,0.00040965,5]
[394785082,1763944257560,-300.0,0.00040965,5]
[394785083,1763944257569,-150.0,0.00040973,5]
[394785084,1763944257579,-500.0,0.00040983,8]
[394785085,1763944257588,-500.0,0.00040983,8]
[394785086,1763944257598,-500.0,0.00040983,8]
[394785087,1763944257607,-276.77262457,0.00040983,8]
[394785088,1763944257617,-500.0,0.00040983,8]
[394785089,1763944257626,-645.30795498,0.00040983,8]
[394785090,1763944257635,-500.0,0.00040984,8]
[394785091,1763944257644,-500.0,0.00040984,8]
[394785092,1763944257654,-500.0,0.00040984,8]
[394785093,1763944257665,-500.0,0.00040984,8]
[394785094,1763944257674,-613.12461485,0.00040984,8]
[394785095,1763944257683,-500.0,0.00040984,8]
[394785096,1763944257693,-576.19,0.00040984,8]
[394785097,1763944257704,-1472.89,0.00040984,8]
[394785098,1763944257714,-500.0,0.00040984,8]
[394785099,1763944257723,-500.0,0.00040984,8]
[394785100,1763944257733,-254.41517911,0.00040984,8]
[394785101,1763944257743,-500.0,0.00040984,8]
[394785102,1763944257753,-1839.34,0.00040984,8]
[394785103,1763944257763,-500.0,0.00040984,8]
[394785104,1763944257771,-500.0,0.00040984,8]
[394785105,1763944257782,-500.0,0.00040984,8]
[394785106,1763944257791,-500.0,0.00040984,8]
[394785107,1763944257801,-500.0,0.00040984,8]
[394785108,1763944257810,-173.0,0.00040987,120]
[394785109,1763944257819,-182.8798203,0.0004099,7]
[394785110,1763944257829,-1010.5,0.00040995,7]
[394785111,1763944257838,-2297.42032219,0.00040995,31]
[394785112,1763944257848,-207.4,0.00040997,30]
[394785113,1763944257857,-496.47127164,0.00040997,30]
[394785114,1763944257867,-5000.0,0.00040997,30]
[394785115,1763944257876,-500.0,0.00040997,30]
[394785116,1763944257886,-250.0,0.00040997,30]
[394785117,1763944257895,-500.0,0.00040997,30]
[394785118,1763944257905,-1500.0,0.00040997,30]
[394785119,1763944257915,-500.0,0.00040997,30]
[394785120,1763944257924,-200.0,0.00040998,30]
[394785121,1763944257934,-445.202766,0.00040998,30]
[394785122,1763944257943,-250.0,0.00040998,30]
[394785123,1763944257952,-370.98335745,0.00040998,30]
[394785124,1763944257962,-461.67526834,0.00040998,31]
[394785125,1763944257971,-559.19188,0.00040998,30]
[394785126,1763944257981,-250.0,0.00040998,31]
[394785127,1763944257992,-579.88197956,0.00040998,31]
[394785128,1763944258002,-478.75725327,0.00040998,41]
[394785129,1763944258011,-250.0,0.00040998,41]
[394785130,1763944258021,-601.33761281,0.00040998,41]
[394785131,1763944258031,-250.0,0.00040998,30]
[394785132,1763944258040,-250.0,0.00040998,31]
[394785133,1763944258049,-5000.0,0.00040998,30]
[394785134,1763944258059,-250.0,0.00040998,41]
[394785135,1763944258068,-5000.0,0.00040998,31]
[394785136,1763944258078,-5000.0,0.00040998,41]
[394785137,1763944258087,-250.0,0.00040998,30]
[394785138,1763944258097,-250.0,0.00040998,31]
[394785139,1763944258106,-250.0,0.00040998,41]
[394785140,1763944258118,-500.0,0.00040998,30]
[394785141,1763944258127,-500.0,0.00040998,30]
[394785142,1763944258137,-500.0,0.00040998,31]
[394785143,1763944258147,-500.0,0.00040998,31]
[394785144,1763944258156,-250.0,0.00040998,30]
[394785145,1763944258166,-500.0,0.00040998,41]
[394785146,1763944258176,-250.0,0.00040998,30]
[394785147,1763944258186,-500.0,0.00040998,30]
[394785148,1763944258197,-500.0,0.00040998,41]
[394785149,1763944258206,-250.0,0.00040998,31]
[394785150,1763944258217,-250.0,0.00040998,31]
[394785151,1763944258227,-500.0,0.00040998,30]
[394785152,1763944258236,-500.0,0.00040998,31]
[394785153,1763944258249,-276.4808023,0.00040998,41]
[394785154,1763944258260,-600.0,0.00040998,30]
[394785155,1763944258269,-250.0,0.00040998,41]
[394785156,1763944258278,-500.0,0.00040998,41]
[394785157,1763944258287,-600.0,0.00040998,31]
[394785158,1763944258297,-500.0,0.00040998,31]
[394785159,1763944258306,-151.0,0.00040998,30]
[394785160,1763944258315,-600.0,0.00040998,41]
[394785161,1763944258324,-151.0,0.00040998,31]
[394785162,1763944258334,-500.0,0.00040998,41]
[394785163,1763944258343,-151.0,0.00040998,41]
[394785164,1763944258352,-1500.0,0.00040998,30]
[394785165,1763944258362,-1500.0,0.00040998,31]
[394785166,1763944258372,-1500.0,0.00040998,41]
[394785167,1763944258382,-537.6845,0.00040998,30]
[394785168,1763944258392,-557.5788265,0.00040998,31]
[394785169,1763944258402,-500.0,0.00040998,30]
[394785170,1763944258411,-500.0,0.00040998,31]
[394785171,1763944258421,-500.0,0.00040998,41]
[394785172,1763944258430,-157.8410325,0.00040998,30]
[394785173,1763944258440,-500.0,0.00040998,30]
[394785174,1763944258449,-500.0,0.00040998,31]
[394785175,1763944258458,-500.0,0.00040998,41]
[394785176,1763944258468,-1000.0,0.00040999,120]
[394785177,1763944258481,-414.0,0.00040999,31]
[394785178,1763944258493,-220.0,0.00040999,31]
[394785179,1763944258502,-250.0,0.00040999,31]
[394785180,1763944258512,-520.0,0.00040999,31]
[394785181,1763944258522,-429.318,0.00040999,41]
[394785182,1763944258531,-250.0,0.00040999,41]
[394785183,1763944258541,-220.0,0.00040999,41]
[394785184,1763944258552,-539.24,0.00040999,41]
[394785185,1763944258562,-250.0,0.00040999,31]
[394785186,1763944258572,-151.0,0.00040999,31]
[394785187,1763944258582,-250.0,0.00040999,41]
[394785188,1763944258591,-5000.0,0.00040999,31]
[394785189,1763944258600,-5000.0,0.00040999,41]
[394785190,1763944258610,-250.0,0.00040999,31]
[394785191,1763944258619,-250.0,0.00040999,41]
[394785192,1763944258629,-500.0,0.00040999,31]
[394785193,1763944258638,-500.0,0.00040999,31]
[394785194,1763944258648,-500.0,0.00040999,41]
[394785195,1763944258657,-500.0,0.00040999,41]
[394785196,1763944258667,-250.0,0.00040999,31]
[394785197,1763944258676,-250.0,0.00040999,31]
[394785198,1763944258685,-500.0,0.00040999,31]
[394785199,1763944258695,-250.0,0.00040999,41]
[394785200,1763944258705,-250.0,0.00040999,41]
[394785201,1763944258714,-500.0,0.00040999,41]
[394785202,1763944258724,-500.0,0.00040999,31]
[394785203,1763944258734,-600.0,0.00040999,31]
[394785204,1763944258744,-500.0,0.00040999,41]
[394785205,1763944258754,-600.0,0.00040999,41]
[394785206,1763944258764,-151.0,0.00040999,31]
[394785207,1763944258773,-151.0,0.00040999,41]
[394785208,1763944258782,-300.0,0.00040999,31]
[394785209,1763944258792,-311.1,0.00040999,41]
[394785210,1763944258801,-1500.0,0.00040999,31]
[394785211,1763944258811,-1500.0,0.00040999,41]
[394785212,1763944258821,-151.68414985,0.00040999,31]
[394785213,1763944258830,-500.0,0.00040999,31]
[394785214,1763944258840,-518.5,0.00040999,41]
[394785215,1763944258849,-500.0,0.00040999,31]
[394785216,1763944258859,-500.0,0.00040999,41]
[394785217,1763944258907,-151.0,0.00040999,31]
[394785218,1763944258916,-151.0,0.00040999,41]
[394785219,1763944258926,-500.0,0.00040999,31]
[394785220,1763944258935,-500.0,0.00040999,41]
[394785221,1763944258944,-1219226.03505982,0.00041,2]
[394785222,1763944259104,-1404.45266,0.00041,2]
[394785223,1763944259179,-244.785915,0.0003889,120]
[394785224,1763944259188,-244.785915,0.000389,120]
[394785225,1763944259198,-244.785915,0.00039077,120]
[394785226,1763944259207,-190.830468,0.00039461,120]
[394785227,1763944259216,-244.785915,0.00039461,120]
[394785228,1763944259226,-200.6216176,0.0004,120]
[394785229,1763944259307,-500.0,0.00039065,8]
[394785230,1763944259316,-500.0,0.00039066,8]
[394785231,1763944259325,-44.1642974,0.0004,120]
[394785232,1763944259335,-190.830476,0.0004,120]
[394785233,1763944259344,-244.785907,0.0004,120]
[394785234,1763944259353,-4953.2607396,0.00041,2]
[394785235,1763944259365,-761.92919219,0.00041,2]
[394785236,1763944259376,-392.42322,0.00041,2]
[394785237,1763944259386,-519.230507,0.00041,2]
[394785238,1763944259398,-3850.59788331,0.00041,2]
[394785239,1763944259409,-1494.42132137,0.00041,2]
[394785240,1763944259421,-1879.496232,0.00041,2]
[394785241,1763944259433,-384.996,0.00041,2]
[394785242,1763944259454,-500.0,0.0003934,8]
[394785243,1763944259463,-1888.66294525,0.00041,2]
[394785244,1763944259476,-4324.62379415,0.00041,2]
[394785245,1763944259489,-387.5,0.00041,2]
[394785246,1763944259500,-632.358,0.00041,2]
[394785247,1763944259512,-536.75999994,0.00041,2]
[394785248,1763944259522,-420.22282652,0.00041,2]
[394785249,1763944259534,-1800.91020049,0.00041,2]
[394785250,1763944259547,-144779.9260736,0.00041,2]
[394785251,1763944259561,-29412.74550957,0.00041,2]
[394785252,1763944259571,-3605.53971555,0.00041,2]
[394785253,1763944259582,-1047.36,0.00041,2]
[394785254,1763944259598,-9318.69840883,0.00041,2]
[394785255,1763944259608,-3128.71254001,0.00041,2]
[394785284,1763945432203,-654.3,0.00020724,2]
[394785285,1763945432212,-250.0,0.00020824,2]
[394785286,1763945432222,-500.0,0.00020899,2]
[394785287,1763945432231,-160.0,0.00021,2]
[394785288,1763945432240,-160.0,0.00021,2]
[394785289,1763945432250,-312.5701946,0.00022779,2]
[394785290,1763945432259,-195.0,0.00022879,2]
[394785291,1763945432268,-300.0,0.00022879,2]
[394785292,1763945432277,-250.0,0.00022879,2]
[394785293,1763945432286,-343.53118262,0.00022934,2]
[394785294,1763945432295,-426.56612961,0.00025467,2]
[394785295,1763945432304,-830.0,0.00026653,2]
[394785296,1763945432314,-1719.72713219,0.00026654,2]
[394785297,1763945432329,-1626.67393895,0.00026654,2]
[394785298,1763945432362,-4352.35,0.00026654,2]
[394785299,1763945432373,-2598.70777897,0.00026654,2]
[394785300,1763945432383,-250.0,0.00027484,2]
[394785301,1763945432392,-155.76600743,0.00027702,55]
[394785302,1763945432402,-489.0,0.00028661,2]
[394785303,1763945432412,-171.67710611,0.00028718,2]
[394785304,1763945432421,-150.99,0.00029009,2]
[394785305,1763945432431,-1579.97,0.00029009,2]
[394785306,1763945432441,-7623.82,0.00029009,2]
[394785307,1763945432451,-155.76600735,0.0002921,59]
[394785308,1763945432460,-155.76600735,0.00030717,62]
[394785309,1763945432469,-155.76600735,0.00032225,66]
[394785310,1763945432479,-166.66,0.0003244,30]
[394785311,1763945432489,-166.66,0.00033123,30]
[394785312,1763945432500,-938.49595364,0.00033669,2]
[394785313,1763945432509,-155.76600735,0.00033733,69]
[394785314,1763945432520,-166.66,0.00033806,30]
[394785315,1763945432530,-5000.0,0.00034012,2]
[394785316,1763945432552,-17604.07,0.00034386,2]
[394785317,1763945432565,-1000.0,0.00034468,2]
[394785318,1763945432576,-166.66,0.00034489,30]
[394785320,1763945432587,-2751.0,0.00034651,120]
[394785321,1763945432598,-150.0,0.00035,120]
[394785322,1763945432609,-166.66,0.00035172,30]
[394785323,1763945432620,-1000.0,0.00035203,2]
[394785324,1763945432630,-155.76600735,0.00035241,73]
[394785325,1763945432642,-1500.0,0.00035353,120]
[394785326,1763945432652,-170.16061404,0.00035353,41]
[394785327,1763945432661,-917.217,0.00035353,41]
[394785329,1763945432671,-200.0,0.00035475,2]
[394785330,1763945432680,-8519.47357981,0.000357,2]
[394785331,1763945432690,-1000.0,0.00035761,2]
[394785332,1763945432699,-1000.0,0.00035783,2]
[394785333,1763945432709,-9799.08,0.00035805,2]
[394785334,1763945432718,-166.66,0.00035855,30]
[394785335,1763945432727,-449.12,0.00036138,3]
[394785336,1763945432737,-155.76600735,0.00036748,76]
[394785337,1763945432748,-150.0,0.00036888,7]
[394785338,1763945432759,-150.0,0.00036888,7]
[394785339,1763945432768,-316.863,0.00036888,7]
[394785340,1763945432777,-160.0,0.00037,90]
[394785341,1763945432786,-160.0,0.00037,60]
[394785342,1763945432796,-1000.0,0.00037053,2]
[394785343,1763945432805,-26740.6364266,0.00037944,2]
[394785344,1763945432875,-30668.24574982,0.00037944,2]
[394785345,1763945432886,-3464.43675844,0.00038156,2]
[394785346,1763945432896,-151.0,0.00038233,2]
[394785347,1763945432906,-151.0,0.00038233,2]
[394785348,1763945432915,-151.0,0.00038233,2]
[394785349,1763945432926,-151.0,0.00038233,2]
[394785350,1763945432935,-151.0,0.00038233,2]
[394785351,1763945432944,-151.0,0.00038233,2]
[394785352,1763945432953,-175.1144134,0.00038233,2]
[394785353,1763945432963,-11206.5862,0.00038256,2]
[394785354,1763945432972,-2500.0,0.00038256,2]
[394785355,1763945432981,-1000.0,0.00038256,2]
[394785356,1763945432990,-155.76600735,0.00038256,80]
[394785357,1763945433001,-1000.0,0.000383,7]
[394785358,1763945433021,-1000.0,0.00038346,2]
[394785359,1763945433038,-928.73369947,0.00038356,10]
[394785360,1763945433047,-500.0,0.00038356,8]
[394785361,1763945433057,-500.0,0.00038356,8]
[394785362,1763945433066,-500.0,0.00038356,8]
[394785363,1763945433075,-500.0,0.00038356,8]
[394785364,1763945433085,-624.9708388,0.00038356,2]
[394785365,1763945433094,-500.0,0.00038356,8]
[394785366,1763945433103,-407.704128,0.00038356,8]
[394785367,1763945433113,-502.278428,0.00038356,8]
[394785368,1763945433122,-500.0,0.00038356,8]
[394785369,1763945433132,-500.0,0.00038356,8]
[394785370,1763945433141,-418.67306161,0.00038356,8]
[394785371,1763945433150,-373.26114123,0.00038356,8]
[394785372,1763945433159,-500.0,0.00038356,8]
[394785373,1763945433168,-325.57,0.00038356,8]
[394785374,1763945433178,-500.0,0.00038356,8]
[394785375,1763945433188,-500.0,0.00038356,8]
[394785376,1763945433197,-500.0,0.00038356,8]
[394785377,1763945433206,-170.52,0.00038356,8]
[394785378,1763945433215,-500.0,0.00038356,8]
[394785379,1763945433224,-500.0,0.00038356,8]
[394785380,1763945433234,-432.12746951,0.00038356,8]
[394785381,1763945433244,-500.0,0.00038356,8]
[394785382,1763945433253,-500.0,0.00038356,8]
[394785383,1763945433262,-500.0,0.00038356,8]
[394785384,1763945433271,-500.0,0.00038356,8]
[394785385,1763945433280,-500.0,0.00038356,8]
[394785386,1763945433290,-503.02381469,0.00038356,8]
[394785387,1763945433300,-500.0,0.00038356,8]
[394785388,1763945433310,-524.0776506,0.00038356,8]
[394785389,1763945433319,-500.0,0.00038356,8]
[394785390,1763945433328,-500.0,0.00038356,8]
[394785391,1763945433338,-500.0,0.00038356,8]
[394785392,1763945433348,-529.94583998,0.00038356,8]
[394785393,1763945433357,-500.0,0.00038356,8]
[394785394,1763945433367,-510.46366579,0.00038356,8]
[394785395,1763945433376,-500.0,0.00038356,7]
[394785396,1763945433386,-500.0,0.00038356,2]
[394785397,1763945433395,-500.0,0.00038356,8]
[394785398,1763945433404,-646.03,0.00038356,8]
[394785399,1763945433413,-277.23,0.00038356,8]
[394785400,1763945433422,-434.4353957,0.00038356,8]
[394785401,1763945433432,-353.16,0.00038356,2]
[394785402,1763945433441,-500.0,0.00038356,8]
[394785403,1763945433451,-509.67308174,0.00038356,8]
[394785404,1763945433460,-500.0,0.00038356,8]
[394785405,1763945433469,-500.0,0.00038356,10]